bitfinex-derivatives/quotes_BTCF0:USTF0_20250327
["timestamp","ask_amount","ask_price","bid_price","bid_amount"]
[1743038173460,0.2227796,87304.0,87303.0,0.0738]
[1743038174052,0.21201276,87304.0,87303.0,0.0738]
[1743038174255,0.22106048,87304.0,87303.0,0.0738]
[1743038175255,0.23241455,87304.0,87303.0,0.0738]
[1743038175555,0.22106048,87304.0,87303.0,0.0738]
[1743038175752,0.22106048,87304.0,87303.0,0.1883298]
[1743038175957,0.22095288,87304.0,87303.0,0.1883298]
[1743038176653,0.23245671,87304.0,87303.0,0.0738]
[1743038177055,0.23245671,87304.0,87294.0,0.0572703]
[1743038177056,0.0572677,87299.0,87291.0,0.3608]
[1743038177360,0.114539,87296.0,87294.0,0.1145404]
[1743038177565,0.12511913,87296.0,87295.0,1.53777181]
[1743038177864,0.12511913,87296.0,87295.0,1.65231211]
[1743038178057,0.12347912,87296.0,87295.0,0.15231211]
[1743038178364,0.14240339,87296.0,87295.0,0.15231211]
[1743038178559,0.14240339,87296.0,87295.0,1.65231211]
[1743038178766,0.14076338,87296.0,87295.0,1.65231211]
[1743038179059,0.14376338,87296.0,87295.0,0.15231211]
[1743038179362,0.13676692,87296.0,87295.0,0.03777181]
[1743038179666,0.13676692,87296.0,87295.0,0.00017181]
[1743038179865,0.13512691,87296.0,87295.0,0.00017181]
[1743038180060,0.13676692,87296.0,87295.0,0.00017181]
[1743038180665,0.14724648,87296.0,87295.0,0.00017181]
[1743038181967,0.14724648,87296.0,87295.0,0.03767181]
[1743038182770,0.14724648,87296.0,87295.0,0.15221211]
[1743038183158,0.14724648,87296.0,87295.0,0.18771211]
[1743038183759,0.14724648,87296.0,87295.0,1.68771211]
[1743038183960,0.13512691,87296.0,87295.0,1.68771211]
[1743038185068,0.20762691,87296.0,87295.0,1.68771211]
[1743038185266,0.20930691,87296.0,87295.0,1.68771211]
[1743038185463,0.20762691,87296.0,87295.0,0.18771211]
[1743038185672,0.20934692,87296.0,87295.0,0.18771211]
[1743038186058,0.2182794,87296.0,87295.0,0.18771211]
[1743038186262,0.2182794,87296.0,87295.0,0.22291211]
[1743038187058,0.21999941,87296.0,87295.0,0.22291211]
[1743038187363,0.22007905,87296.0,87295.0,0.22291211]
[1743038187564,0.21835904,87296.0,87295.0,0.58371211]
[1743038188271,0.03132004,87296.0,87295.0,0.58371211]
[1743038188469,0.03132004,87296.0,87295.0,0.59528846]
[1743038188669,0.03130749,87296.0,87295.0,0.59528846]
[1743038189095,0.14584649,87296.0,87295.0,0.59528846]
[1743038189761,0.135194,87296.0,87295.0,0.59528846]
[1743038191258,0.12618679,87296.0,87295.0,0.59528846]
[1743038191458,0.01164779,87296.0,87295.0,0.59528846]
[1743038193065,0.005,87296.0,87295.0,0.59528846]
[1743038193261,0.01161825,87296.0,87295.0,0.59528846]
[1743038194274,0.02044665,87296.0,87295.0,0.59528846]
[1743038197377,0.01161825,87296.0,87295.0,0.59528846]
[1743038198172,0.01161825,87296.0,87295.0,0.23448846]
[1743038198372,0.01161825,87296.0,87295.0,0.59528846]
[1743038198373,0.02042654,87296.0,87295.0,0.59528846]
[1743038199279,0.01161825,87296.0,87295.0,0.59528846]
[1743038202484,0.02043139,87296.0,87295.0,0.59528846]
[1743038205480,0.03166952,87296.0,87295.0,0.59528846]
[1743038206383,0.02285638,87296.0,87295.0,0.23448846]
[1743038206684,0.03167786,87296.0,87295.0,0.59528846]
[1743038208382,0.03167786,87296.0,87295.0,0.58371211]
[1743038208682,0.07127786,87296.0,87295.0,0.58371211]
[1743038208872,0.10987786,87296.0,87295.0,0.59521437]
[1743038210181,0.10105638,87296.0,87295.0,0.54821211]
[1743038210384,0.22474618,87296.0,87295.0,0.00017181]
[1743038210589,0.22642618,87296.0,87295.0,0.00017181]
[1743038210884,0.1145469,87290.0,87289.0,0.27297665]
[1743038211085,0.2372577,87290.0,87289.0,0.27297665]
[1743038211382,0.2372577,87290.0,87274.0,0.34198927]
[1743038211383,0.1145665,87275.0,87274.0,0.34198927]
[1743038211599,0.1253973,87275.0,87274.0,0.34198927]
[1743038211887,0.15041484,87275.0,87274.0,1.84198927]
[1743038212077,0.14873484,87275.0,87274.0,1.84198927]
[1743038212279,0.22483484,87275.0,87274.0,1.84198927]
[1743038212583,0.22651484,87275.0,87274.0,1.84198927]
[1743038212787,0.23518718,87275.0,87274.0,1.84198927]
[1743038214583,0.23518718,87275.0,87274.0,1.95655717]
[1743038214778,0.22651484,87275.0,87274.0,1.95655717]
[1743038214985,0.22651484,87275.0,87274.0,1.99395717]
[1743038215883,0.36361786,87275.0,87274.0,1.6519679]
[1743038216072,0.3564567,87275.0,87274.0,1.6145679]
[1743038216589,0.3945567,87275.0,87274.0,1.6145679]
[1743038217489,0.3945567,87275.0,87274.0,1.5]
[1743038218579,0.3945567,87275.0,87274.0,1.6145679]
[1743038219278,0.3945567,87275.0,87274.0,1.6545679]
[1743038219686,0.39449088,87275.0,87274.0,1.6145679]
[1743038220586,0.25731488,87275.0,87274.0,1.6545679]
[1743038220979,0.25731488,87275.0,87274.0,1.54]
[1743038221179,0.25564494,87275.0,87274.0,1.54]
[1743038222883,0.25564494,87275.0,87274.0,1.6545679]
[1743038223488,0.25564494,87275.0,87274.0,0.1545679]
[1743038223673,0.25728495,87275.0,87274.0,0.04]
[1743038224078,0.25564494,87275.0,87274.0,0.04]
[1743038224681,0.25728495,87275.0,87274.0,0.04]
[1743038226992,0.1145771,87267.0,87266.0,0.00017181]
[1743038227293,0.1145889,87259.0,87258.0,0.1145886]
[1743038227497,0.12533097,87259.0,87258.0,0.1900886]
[1743038227682,0.19831096,87259.0,87258.0,0.1900886]
[1743038228191,0.20492921,87259.0,87258.0,0.1900886]
[1743038228387,0.16712921,87259.0,87258.0,0.1900886]
[1743038228581,0.0572861,87271.0,87270.0,0.171853]
[1743038228791,0.07889736,87271.0,87270.0,0.0572851]
[1743038228986,0.19346916,87271.0,87270.0,0.0572851]
[1743038229179,0.1145744,87269.0,87268.0,0.1883757]
[1743038229383,0.12504414,87269.0,87268.0,0.1883757]
[1743038229789,0.16194414,87269.0,87268.0,0.0738]
[1743038230094,0.19974414,87269.0,87268.0,0.0738]
[1743038230800,0.19986547,87269.0,87268.0,0.0738]
[1743038230985,0.19985999,87269.0,87268.0,0.0738]
[1743038231990,0.19985999,87269.0,87268.0,0.1883757]
[1743038233290,0.19985999,87269.0,87268.0,0.0738]
[1743038233799,0.211024,87269.0,87268.0,0.0738]
[1743038234600,0.211024,87269.0,87268.0,0.1883757]
[1743038235797,0.136324,87269.0,87268.0,0.1883757]
[1743038237495,0.136324,87269.0,87268.0,0.0738]
[1743038237908,0.5122399,87269.0,87268.0,0.0738]
[1743038238197,0.6269399,87269.0,87268.0,0.0371]
[1743038238592,0.60287842,87269.0,87268.0,0.0371]
[1743038238796,0.60287842,87269.0,87265.0,0.0365]
[1743038238797,0.1145784,87266.0,87265.0,0.0365]
[1743038238998,0.14079572,87266.0,87265.0,0.0734]
[1743038239207,0.14079572,87266.0,87250.0,0.00017181]
[1743038239208,0.1145902,87257.0,87250.0,0.00017181]
[1743038239393,0.49996751,87257.0,87255.0,0.0734]
[1743038239598,0.15913538,87257.0,87256.0,0.11504992]
[1743038239799,0.15913538,87257.0,87256.0,0.18854992]
[1743038240708,0.16013538,87257.0,87256.0,0.18854992]
[1743038241207,0.16740338,87257.0,87256.0,0.18854992]
[1743038241709,0.16840338,87257.0,87256.0,0.18854992]
[1743038242205,0.16840338,87257.0,87256.0,1.68854992]
[1743038242507,0.16476337,87257.0,87256.0,1.68854992]
[1743038243204,0.15759952,87257.0,87256.0,1.68854992]
[1743038245206,0.15773852,87257.0,87256.0,1.68854992]
[1743038246306,0.15777066,87257.0,87256.0,1.68854992]
[1743038248311,0.15777066,87257.0,87256.0,0.18854992]
[1743038248515,0.23561067,87257.0,87256.0,0.18854992]
[1743038252711,0.37278667,87257.0,87256.0,0.18854992]
[1743038254516,0.37278667,87257.0,87256.0,0.54934992]
[1743038254923,0.37278667,87257.0,87256.0,0.18854992]
[1743038255117,0.37278667,87257.0,87256.0,0.54934992]
[1743038255315,0.37278667,87257.0,87256.0,0.18854992]
[1743038255516,0.37278667,87257.0,87256.0,0.54934992]
[1743038255925,0.37314483,87257.0,87256.0,0.54934992]
[1743038257828,0.37309865,87257.0,87256.0,0.54934992]
[1743038259723,0.37309865,87257.0,87256.0,0.43475842]
[1743038259926,0.37309865,87257.0,87256.0,0.54934992]
[1743038260713,0.37309865,87257.0,87256.0,0.43475842]
[1743038260914,0.37309865,87257.0,87256.0,0.54934992]
[1743038261220,0.37309865,87257.0,87256.0,0.43475842]
[1743038261624,0.37299152,87257.0,87256.0,0.43475842]
[1743038261823,0.37299152,87257.0,87256.0,0.36125842]
[1743038262028,0.25513663,87257.0,87256.0,0.36125842]
[1743038262513,0.25513663,87257.0,87256.0,0.00045842]
[1743038262717,0.24297964,87257.0,87256.0,0.00045842]
[1743038265632,0.29869555,87257.0,87256.0,0.00045842]
[1743038266421,0.65949555,87257.0,87256.0,0.00045842]
[1743038267426,0.6592539,87257.0,87256.0,2.83e-06]
[1743038270531,0.85667854,87257.0,87256.0,2.83e-06]
[1743038271426,0.1145981,87251.0,87250.0,0.00017181]
[1743038271622,0.14107594,87251.0,87250.0,0.03677181]
[1743038272036,0.21947594,87251.0,87250.0,0.03677181]
[1743038272366,0.24507207,87251.0,87250.0,0.03677181]
[1743038272864,0.16667207,87251.0,87250.0,0.51217121]
[1743038273564,0.16667207,87251.0,87250.0,2.01217121]
[1743038273757,0.16495206,87251.0,87250.0,2.01217121]
[1743038275055,0.16495724,87251.0,87250.0,2.01217121]
[1743038277434,0.16495724,87251.0,87250.0,0.51217121]
[1743038277642,0.16659725,87251.0,87250.0,0.55177121]
[1743038278128,0.16495724,87251.0,87250.0,0.55177121]
[1743038278725,0.16659725,87251.0,87250.0,0.55177121]
[1743038279435,0.16495724,87251.0,87250.0,0.55177121]
[1743038280034,0.16495724,87251.0,87250.0,0.19097121]
[1743038280233,0.16659725,87251.0,87250.0,0.19097121]
[1743038280633,0.16659725,87251.0,87250.0,0.22837121]
[1743038281033,0.16495724,87251.0,87250.0,0.22837121]
[1743038282038,0.1657833,87251.0,87250.0,0.22837121]
[1743038284035,0.16584355,87251.0,87250.0,0.22837121]
[1743038285139,0.16748356,87251.0,87250.0,0.22837121]
[1743038285535,0.16584355,87251.0,87250.0,0.22837121]
[1743038285732,0.14019423,87251.0,87250.0,0.22837121]
[1743038285941,0.16747757,87251.0,87250.0,0.22837121]
[1743038286440,0.16583756,87251.0,87250.0,0.22837121]
[1743038286659,0.05123946,87251.0,87250.0,0.22837121]
[1743038286944,0.17169733,87252.0,87251.0,0.1145981]
[1743038287142,0.17329733,87252.0,87251.0,0.1900981]
[1743038287348,0.28789403,87252.0,87251.0,0.1900981]
[1743038287643,0.17329733,87252.0,87251.0,1.6900981]
[1743038287939,0.28621403,87252.0,87251.0,0.1900981]
[1743038288142,0.28785404,87252.0,87251.0,0.1900981]
[1743038290134,0.11623671,87252.0,87251.0,0.1900981]
[1743038290345,0.1145967,87252.0,87251.0,0.1900981]
[1743038293036,0.11631671,87252.0,87251.0,0.1900981]
[1743038293644,0.11631671,87252.0,87251.0,1.6900981]
[1743038293950,0.1145967,87252.0,87251.0,1.6900981]
[1743038294165,8e-05,87253.0,87252.0,0.1145967]
[1743038294537,8e-05,87253.0,87252.0,0.1893967]
[1743038294742,0.1145948,87254.0,87253.0,0.1145954]
[1743038294943,8e-05,87254.0,87253.0,0.1145954]
[1743038295253,0.1146741,87254.0,87253.0,0.1893954]
[1743038295842,0.12183809,87254.0,87253.0,0.1893954]
[1743038296951,0.13746641,87254.0,87253.0,0.1893954]
[1743038297654,0.1490145,87254.0,87253.0,0.1893954]
[1743038299049,0.15875907,87254.0,87253.0,0.1893954]
[1743038299355,0.16754596,87254.0,87253.0,0.1893954]
[1743038299556,0.20694596,87254.0,87253.0,0.1893954]
[1743038300750,0.20530595,87254.0,87253.0,0.1893954]
[1743038300956,0.19814196,87254.0,87253.0,0.1893954]
[1743038301360,0.04414786,87254.0,87253.0,0.1893954]
[1743038301671,0.04406786,87254.0,87253.0,0.1893954]
[1743038302563,0.04570787,87254.0,87253.0,0.1893954]
[1743038302761,0.04406786,87254.0,87253.0,0.1893954]
[1743038303363,0.05287164,87254.0,87253.0,0.1893954]
[1743038305264,0.04570787,87254.0,87253.0,0.1893954]
[1743038305654,0.04570787,87254.0,87253.0,0.5501954]
[1743038306260,0.16030197,87254.0,87253.0,0.5501954]
[1743038306461,0.04570787,87254.0,87253.0,0.5501954]
[1743038306957,0.16030197,87254.0,87253.0,0.5501954]
[1743038307157,0.04570787,87254.0,87253.0,0.5501954]
[1743038307559,0.16030197,87254.0,87253.0,0.5501954]
[1743038308667,0.29770127,87254.0,87253.0,0.5501954]
[1743038308858,0.18310717,87254.0,87253.0,0.5501954]
[1743038310470,0.22450717,87254.0,87253.0,0.5501954]
[1743038310859,0.22482093,87254.0,87253.0,0.5501954]
[1743038313364,0.22482093,87254.0,87253.0,0.1893954]
[1743038313561,0.22482093,87254.0,87253.0,0.5501954]
[1743038314664,0.22489751,87254.0,87253.0,0.5501954]
[1743038315766,0.08749821,87254.0,87253.0,0.5501954]
[1743038316464,0.07158951,87254.0,87253.0,0.5501954]
[1743038316671,0.08724522,87254.0,87253.0,0.5501954]
[1743038316859,0.04584522,87254.0,87253.0,0.5501954]
[1743038317460,0.16043932,87254.0,87253.0,0.5501954]
[1743038317771,0.12764522,87254.0,87253.0,0.5501954]
[1743038320773,0.24223932,87254.0,87253.0,0.5501954]
[1743038321762,0.12764522,87254.0,87253.0,0.5501954]
[1743038322777,0.24223932,87254.0,87253.0,0.5501954]
[1743038323270,0.28363932,87254.0,87253.0,0.5501954]
[1743038323465,0.28363932,87254.0,87253.0,0.1893954]
[1743038324183,0.28314665,87254.0,87253.0,0.1893954]
[1743038325073,0.45476398,87254.0,87253.0,0.1893954]
[1743038327967,0.45432894,87254.0,87253.0,0.1893954]
[1743038328369,0.51004329,87254.0,87253.0,0.1893954]
[1743038329878,0.51009746,87254.0,87253.0,0.1893954]
[1743038330867,0.52151478,87254.0,87253.0,0.1893954]
[1743038331063,0.52151478,87254.0,87253.0,0.1521954]
[1743038331774,0.46580043,87254.0,87253.0,0.1521954]
[1743038333075,0.46154735,87254.0,87253.0,0.1521954]
[1743038333674,0.46178395,87254.0,87253.0,0.1521954]
[1743038335073,0.46178395,87254.0,87253.0,0.1145954]
[1743038335370,0.46178395,87254.0,87242.0,0.0573046]
[1743038335371,0.1146112,87241.0,87240.0,0.115071]
[1743038335572,0.50189479,87241.0,87240.0,0.0004585]
[1743038335783,0.50189479,87241.0,87240.0,0.115071]
[1743038335976,0.50189479,87241.0,87240.0,0.0004585]
[1743038336182,0.58159479,87241.0,87240.0,0.0004585]
[1743038336377,0.60035947,87241.0,87240.0,0.0004585]
[1743038336770,0.60035947,87241.0,87240.0,0.115071]
[1743038337282,0.61176472,87241.0,87240.0,0.115071]
[1743038337582,0.61170053,87241.0,87240.0,0.115071]
[1743038337980,0.61170053,87241.0,87240.0,0.154271]
[1743038338176,0.60029528,87241.0,87240.0,0.196471]
[1743038338787,0.60029528,87241.0,87240.0,0.20774413]
[1743038339380,0.60003301,87241.0,87240.0,0.20774413]
[1743038339989,0.23923301,87241.0,87240.0,0.20774413]
[1743038340290,0.60003301,87241.0,87240.0,0.196471]
[1743038340483,0.40572181,87241.0,87240.0,0.20800499]
[1743038340688,0.04492181,87241.0,87240.0,0.20800499]
[1743038340874,0.04324181,87241.0,87240.0,0.20800499]
[1743038341080,0.15785301,87241.0,87240.0,1.70800499]
[1743038341284,0.04324181,87241.0,87240.0,1.70800499]
[1743038341490,0.02817896,87241.0,87240.0,1.70800499]
[1743038343287,0.02981897,87241.0,87240.0,1.70800499]
[1743038343693,0.02817896,87241.0,87240.0,1.70800499]
[1743038344081,0.01663087,87241.0,87240.0,1.70800499]
[1743038344986,0.00941428,87241.0,87240.0,1.70800499]
[1743038345890,0.01663087,87241.0,87240.0,1.70800499]
[1743038346391,0.01655714,87241.0,87240.0,0.20800499]
[1743038346697,0.01823714,87241.0,87240.0,0.20800499]
[1743038347190,0.01655714,87241.0,87240.0,0.20800499]
[1743038348283,8e-05,87242.0,87241.0,0.1146112]
[1743038348479,0.00941618,87242.0,87241.0,0.1146112]
[1743038348686,0.00941618,87242.0,87241.0,0.1976112]
[1743038349390,0.01626489,87242.0,87241.0,0.1976112]
[1743038349889,0.0312683,87242.0,87241.0,0.1976112]
[1743038350592,0.01626489,87242.0,87241.0,0.1976112]
[1743038351491,0.01626926,87242.0,87241.0,0.1976112]
[1743038351894,0.03137549,87242.0,87241.0,0.1976112]
[1743038353198,0.14598539,87242.0,87241.0,0.1976112]
[1743038353495,0.04406402,87242.0,87241.0,0.1976112]
[1743038353693,0.04406402,87242.0,87241.0,1.6976112]
[1743038353896,0.04242401,87242.0,87241.0,1.6976112]
[1743038355096,0.08446402,87242.0,87241.0,1.6976112]
[1743038355296,0.12666402,87242.0,87241.0,1.6976112]
[1743038355689,0.1321889,87242.0,87241.0,1.6976112]
[1743038356099,0.08989697,87242.0,87241.0,1.6976112]
[1743038356298,0.04941697,87242.0,87241.0,1.6976112]
[1743038356601,0.10295866,87247.0,87246.0,0.1146046]
[1743038356895,0.10467867,87247.0,87246.0,0.2272446]
[1743038357097,0.10631868,87247.0,87246.0,0.2272446]
[1743038357295,0.10459867,87247.0,87246.0,1.7272446]
[1743038357500,0.10295866,87247.0,87246.0,1.8067446]
[1743038357699,0.17161733,87251.0,87248.0,0.0573004]
[1743038357901,0.17161733,87251.0,87250.0,0.1145994]
[1743038358498,0.17161733,87251.0,87250.0,0.1929994]
[1743038358689,0.17325734,87251.0,87250.0,0.1929994]
[1743038359499,0.17161733,87251.0,87250.0,0.1929994]
[1743038361291,0.0384,87252.0,87251.0,0.1145981]
[1743038361590,0.08162001,87252.0,87251.0,0.1923981]
[1743038363404,0.19621671,87252.0,87251.0,0.1923981]
[1743038365788,0.08162001,87252.0,87251.0,0.1923981]
[1743038367803,0.09239611,87252.0,87251.0,0.1923981]
[1743038368506,0.1013639,87252.0,87251.0,0.1923981]
[1743038368700,0.10809523,87252.0,87251.0,0.1923981]
[1743038375209,0.22287867,87252.0,87251.0,0.1923981]
[1743038375404,0.10828197,87252.0,87251.0,0.1923981]
[1743038376001,0.21126403,87252.0,87251.0,0.1923981]
[1743038376729,0.2262409,87252.0,87251.0,0.1923981]
[1743038379909,0.12325884,87252.0,87251.0,0.1923981]
[1743038381005,0.12389683,87252.0,87251.0,0.1923981]
[1743038382809,0.12383725,87252.0,87251.0,0.1923981]
[1743038384409,0.13100117,87252.0,87251.0,0.1923981]
[1743038384808,0.13107957,87252.0,87251.0,0.1923981]
[1743038386722,0.13100098,87252.0,87251.0,0.1923981]
[1743038387117,0.12383706,87252.0,87251.0,0.1923981]
[1743038388514,0.12387108,87252.0,87251.0,0.1923981]
[1743038391424,0.23846778,87252.0,87251.0,0.1923981]
[1743038392426,0.23841047,87252.0,87251.0,0.1923981]
[1743038392626,0.12381377,87252.0,87251.0,0.1923981]
[1743038392833,0.04391377,87252.0,87251.0,0.1923981]
[1743038393012,0.17161733,87255.0,87254.0,0.1145941]
[1743038393321,0.17277733,87255.0,87254.0,0.4760341]
[1743038393518,0.17277733,87255.0,87254.0,1.9760341]
[1743038393821,0.17161733,87255.0,87254.0,1.9760341]
[1743038394026,0.17161733,87255.0,87254.0,2.0558341]
[1743038396524,0.17161733,87255.0,87254.0,1.6950341]
[1743038396830,0.17161733,87255.0,87254.0,2.0558341]
[1743038397030,0.10306154,87258.0,87257.0,0.1145902]
[1743038397225,0.10306154,87258.0,87257.0,0.2277902]
[1743038398330,0.18356154,87258.0,87257.0,0.2277902]
[1743038398627,0.18456154,87258.0,87257.0,0.2277902]
[1743038401026,0.0815,87258.0,87257.0,0.2277902]
[1743038403034,0.09658807,87258.0,87257.0,0.2277902]
[1743038403726,0.10768572,87258.0,87257.0,0.2277902]
[1743038404935,0.22227462,87258.0,87257.0,0.0006]
[1743038405128,0.23284638,87258.0,87257.0,0.0006]
[1743038405333,0.1145954,87253.0,87252.0,0.1145966]
[1743038405534,0.50113523,87253.0,87252.0,0.1152767]
[1743038405837,0.50113523,87253.0,87252.0,1.6152767]
[1743038406229,0.57873523,87253.0,87252.0,1.6152767]
[1743038406537,0.60394397,87253.0,87252.0,1.6152767]
[1743038407038,0.60394397,87253.0,87252.0,0.1152767]
[1743038407537,0.60394397,87253.0,87252.0,1.6152767]
[1743038408535,0.6152603,87253.0,87252.0,1.6152767]
[1743038408838,0.6152603,87253.0,87252.0,0.00068]
[1743038409037,0.6152603,87253.0,87252.0,0.1145967]
[1743038409435,0.6152603,87253.0,87252.0,0.1157567]
[1743038410040,0.60017223,87253.0,87252.0,0.1157567]
[1743038410839,0.5930079,87253.0,87252.0,0.1157567]
[1743038411030,0.5930079,87253.0,87252.0,0.1145967]
[1743038411230,0.5930079,87253.0,87247.0,0.1719002]
[1743038411231,0.114602,87248.0,87247.0,0.1719002]
[1743038411431,0.12405375,87248.0,87247.0,0.1719002]
[1743038411837,0.12521375,87248.0,87247.0,0.1719002]
[1743038412034,0.229523,87248.0,87247.0,0.1725402]
[1743038412242,0.228363,87248.0,87247.0,0.1719002]
[1743038412834,0.22119816,87248.0,87247.0,0.1719002]
[1743038414743,0.22099864,87248.0,87247.0,0.1719002]
[1743038416040,0.23632895,87248.0,87247.0,0.1719002]
[1743038416735,0.2366559,87248.0,87247.0,0.1719002]
[1743038416935,0.60582073,87248.0,87247.0,0.1725802]
[1743038418339,0.24502073,87248.0,87247.0,0.1725802]
[1743038418541,0.60582073,87248.0,87247.0,0.1725802]
[1743038418736,0.60582073,87248.0,87247.0,0.00068]
[1743038419147,0.1146046,87246.0,87245.0,0.1146054]
[1743038419347,0.1146086,87244.0,87243.0,0.0573042]
[1743038419651,0.1406381,87244.0,87243.0,0.0579042]
[1743038419950,0.25324408,87244.0,87243.0,0.0573042]
[1743038420653,0.25324408,87244.0,87243.0,0.0579042]
[1743038422954,0.29154408,87244.0,87243.0,0.0579042]
[1743038423153,0.29154408,87244.0,87243.0,0.0935042]
[1743038423361,0.28004733,87244.0,87243.0,0.0935042]
[1743038423543,0.24174733,87244.0,87243.0,0.0935042]
[1743038423744,0.05123873,87244.0,87243.0,0.0935042]
[1743038423951,0.16584603,87244.0,87243.0,0.0935042]
[1743038424142,0.16584603,87244.0,87243.0,1.5935042]
[1743038425254,0.15868121,87244.0,87243.0,1.5935042]
[1743038425554,0.04407391,87244.0,87243.0,1.5935042]
[1743038426052,0.15868121,87244.0,87243.0,1.5935042]
[1743038426447,0.14758356,87244.0,87243.0,1.5935042]
[1743038427845,0.15871977,87244.0,87243.0,1.5935042]
[1743038428047,0.22779909,87244.0,87243.0,1.5935042]
[1743038428240,0.19299909,87244.0,87243.0,1.5935042]
[1743038429655,0.19187908,87244.0,87243.0,1.5935042]
[1743038430058,0.07743329,87244.0,87243.0,1.5935042]
[1743038430259,0.19204059,87244.0,87243.0,1.5935042]
[1743038430443,0.22684059,87244.0,87243.0,1.5935042]
[1743038430652,0.22684059,87244.0,87243.0,0.0935042]
[1743038430850,0.2279606,87244.0,87243.0,0.0935042]
[1743038431155,0.1931606,87244.0,87243.0,1.5935042]
[1743038431361,0.19204059,87244.0,87243.0,1.5935042]
[1743038431550,0.1931606,87244.0,87243.0,1.5935042]
[1743038431954,0.0443741,87244.0,87243.0,1.5935042]
[1743038432354,0.04325409,87244.0,87243.0,1.5935042]
[1743038432951,0.14612465,87244.0,87243.0,1.5935042]
[1743038433159,0.14724466,87244.0,87243.0,1.5935042]
[1743038433458,0.26185196,87244.0,87243.0,1.5935042]
[1743038435345,0.14724466,87244.0,87243.0,1.5935042]
[1743038436153,0.26185196,87244.0,87243.0,1.5935042]
[1743038436955,0.1589814,87244.0,87243.0,1.5935042]
[1743038437659,0.14089843,87244.0,87243.0,1.5935042]
[1743038437858,0.15799772,87244.0,87243.0,1.5935042]
[1743038438061,0.15915772,87244.0,87243.0,1.5935042]
[1743038438464,0.04455042,87244.0,87243.0,1.5935042]
[1743038438963,0.04339042,87244.0,87243.0,1.5935042]
[1743038439456,0.03372451,87244.0,87243.0,1.5935042]
[1743038439657,0.04341526,87244.0,87243.0,1.5935042]
[1743038439859,0.04453527,87244.0,87243.0,1.5935042]
[1743038440263,0.02791005,87244.0,87243.0,1.5935042]
[1743038441959,0.02791005,87244.0,87243.0,1.9543042]
[1743038443270,0.02745474,87244.0,87243.0,1.5935042]
[1743038443456,0.02745474,87244.0,87243.0,1.9543042]
[1743038443658,0.01624286,87244.0,87243.0,1.9543042]
[1743038444361,0.00923544,87244.0,87243.0,1.9543042]
[1743038445352,0.01624286,87244.0,87243.0,1.9543042]
[1743038446469,0.03124769,87244.0,87243.0,1.9543042]
[1743038446770,0.04233257,87244.0,87243.0,1.9543042]
[1743038447666,0.04233257,87244.0,87243.0,1.5935042]
[1743038448261,0.02732774,87244.0,87243.0,1.5935042]
[1743038448570,0.13039254,87244.0,87243.0,1.5935042]
[1743038449971,0.13151255,87244.0,87243.0,1.5935042]
[1743038450863,0.13039254,87244.0,87243.0,1.5935042]
[1743038451869,0.02732774,87244.0,87243.0,1.5935042]
[1743038452074,0.02852775,87244.0,87243.0,1.5935042]
[1743038453875,0.06282775,87244.0,87243.0,1.5935042]
[1743038454775,0.06244001,87244.0,87243.0,1.5935042]
[1743038455567,0.09934001,87244.0,87243.0,1.5935042]
[1743038456770,0.09932386,87244.0,87243.0,1.5935042]
[1743038457367,0.09049231,87244.0,87243.0,1.5935042]
[1743038457973,0.05359231,87244.0,87243.0,1.5935042]
[1743038458373,0.0624326,87244.0,87243.0,1.5935042]
[1743038458574,0.0959326,87244.0,87243.0,1.5935042]
[1743038460379,0.08709231,87244.0,87243.0,1.5935042]
[1743038460769,0.05359231,87244.0,87243.0,1.5935042]
[1743038460971,0.01929231,87244.0,87243.0,1.9543042]
[1743038461171,0.0180923,87244.0,87243.0,1.9543042]
[1743038462374,0.00700742,87244.0,87243.0,1.9543042]
[1743038462779,0.00700742,87244.0,87243.0,1.5935042]
[1743038463283,0.00700742,87244.0,87243.0,1.6293042]
[1743038467183,0.04010742,87244.0,87243.0,1.6293042]
[1743038467383,0.07640742,87244.0,87243.0,1.6293042]
[1743038467575,0.07640742,87244.0,87243.0,1.9901042]
[1743038468581,0.08717229,87244.0,87243.0,1.9901042]
[1743038469182,0.08717229,87244.0,87243.0,1.6293042]
[1743038469489,0.08717229,87244.0,87243.0,1.9901042]
[1743038472377,0.08717229,87244.0,87243.0,1.6293042]
[1743038472578,0.08717229,87244.0,87243.0,1.9901042]
[1743038475091,0.08717229,87244.0,87243.0,1.6293042]
[1743038475388,0.08717229,87244.0,87243.0,1.9901042]
[1743038476380,0.08717229,87244.0,87243.0,1.6293042]
[1743038476580,0.08717229,87244.0,87243.0,1.9901042]
[1743038477287,0.08717229,87244.0,87243.0,1.6293042]
[1743038477681,0.08717229,87244.0,87243.0,1.9901042]
[1743038479189,0.08717229,87244.0,87243.0,1.6293042]
[1743038479385,0.08717229,87244.0,87243.0,1.9901042]
[1743038480884,0.09433639,87244.0,87243.0,1.9901042]
[1743038481284,0.09433639,87244.0,87243.0,1.6293042]
[1743038481484,0.09433639,87244.0,87243.0,1.9901042]
[1743038481996,0.19744236,87244.0,87243.0,1.9901042]
[1743038482493,0.19744236,87244.0,87243.0,1.6293042]
[1743038482689,0.19744236,87244.0,87243.0,1.9901042]
[1743038483587,0.19027826,87244.0,87243.0,1.9901042]
[1743038485092,0.19744235,87244.0,87243.0,1.9901042]
[1743038485294,0.19744235,87244.0,87243.0,1.6293042]
[1743038485596,0.19744235,87244.0,87243.0,1.9901042]
[1743038485995,0.19744235,87244.0,87243.0,2.1026242]
[1743038486390,0.19744235,87244.0,87243.0,1.7418242]
[1743038486590,0.19856236,87244.0,87243.0,1.7418242]
[1743038486791,0.19856236,87244.0,87243.0,1.6293042]
[1743038486988,0.31316966,87244.0,87243.0,0.0006]
[1743038487501,0.1146099,87242.0,87241.0,0.27359311]
[1743038487703,0.12735733,87242.0,87241.0,0.27419311]
[1743038487993,0.15229371,87242.0,87241.0,0.27419311]
[1743038488191,0.15229371,87242.0,87241.0,0.24839636]
[1743038489395,0.15229371,87242.0,87241.0,0.36300756]
[1743038489593,0.15229371,87242.0,87241.0,0.24839636]
[1743038489796,0.14512962,87242.0,87241.0,0.24839636]
[1743038490600,0.14512962,87242.0,87235.0,0.34198927]
[1743038490601,0.1146178,87236.0,87224.0,0.00045859]
[1743038490797,0.4754217,87233.0,87232.0,0.00132]
[1743038491001,0.4767817,87233.0,87232.0,0.00132]
[1743038491201,0.49455399,87233.0,87232.0,0.00132]
[1743038491597,0.1146283,87228.0,87227.0,0.1146289]
[1743038491901,0.1159083,87228.0,87227.0,0.1152289]
[1743038492294,0.21670392,87228.0,87227.0,0.1152289]
[1743038492695,0.0573153,87227.0,87224.0,0.00045859]
[1743038492896,0.1146322,87225.0,87224.0,0.00177859]
[1743038493190,0.1159122,87225.0,87224.0,0.00177859]
[1743038493694,0.1868122,87225.0,87224.0,0.00177859]
[1743038493898,0.20458449,87225.0,87224.0,0.00177859]
[1743038494400,0.20458449,87225.0,87224.0,0.11641179]
[1743038494600,0.20558449,87225.0,87224.0,0.11641179]
[1743038495404,0.56638449,87225.0,87224.0,0.11641179]
[1743038495904,0.56638449,87225.0,87224.0,0.15151179]
[1743038497096,0.56638449,87225.0,87224.0,0.03687859]
[1743038497295,0.56638449,87225.0,87224.0,0.15019209]